fUST/lending_fUST_20250816
["ID","MTS","AMOUNT","RATE_DAILY","PERIOD"]
[379640535,1755354633698,-151.67827244,0.00020188,2]
[379640536,1755354633708,-242.71904106,0.00020188,2]
[379640537,1755354633718,-151.0,0.00020188,2]
[379640538,1755354633728,-151.0,0.00020188,2]
[379640539,1755354633739,-151.0,0.00020188,2]
[379640540,1755354633751,-500.0,0.00020188,2]
[379640541,1755354633761,-500.0,0.00020188,2]
[379640542,1755354633771,-500.0,0.00020188,2]
[379640543,1755354633781,-310.41750872,0.0002019,2]
[379640544,1755354633791,-13925.98147269,0.00020191,2]
[379640545,1755354633804,-5680.8642965,0.00020191,2]
[379640546,1755354633826,-70479.05706757,0.00020191,2]
[379640547,1755354633836,-500.0,0.000202,2]
[379640548,1755354633846,-492.89252513,0.000202,2]
[379640549,1755354633855,-500.0,0.000202,2]
[379640550,1755354633866,-507.71684695,0.0002036,2]
[379640551,1755354633877,-500.0,0.0002036,2]
[379640552,1755354633887,-500.0,0.0002036,2]
[379640553,1755354633897,-500.0,0.0002036,2]
[379640554,1755354633907,-500.0,0.0002036,2]
[379640555,1755354633916,-500.0,0.0002036,2]
[379640556,1755354633927,-500.0,0.0002036,2]
[379640557,1755354633937,-500.0,0.0002036,2]
[379640558,1755354633947,-504.89955754,0.0002036,2]
[379640559,1755354633957,-500.0,0.0002036,2]
[379640560,1755354633967,-227.12227315,0.0002036,2]
[379640561,1755354633977,-500.0,0.0002036,2]
[379640562,1755354633986,-260.8153617,0.0002036,2]
[379640563,1755354633996,-500.0,0.0002036,2]
[379640564,1755354634006,-500.0,0.0002036,2]
[379640565,1755354634017,-500.0,0.0002036,2]
[379640566,1755354634027,-1191.15810937,0.00020408,2]
[379640567,1755354634037,-151.0,0.00020462,2]
[379640568,1755354634047,-151.0,0.00020462,2]
[379640569,1755354634057,-151.0,0.00020462,2]
[379640570,1755354634067,-500.0,0.00020462,2]
[379640571,1755354634076,-500.0,0.00020462,2]
[379640572,1755354634086,-151.0,0.00020462,2]
[379640573,1755354634096,-500.0,0.00020462,2]
[379640574,1755354634108,-151.0,0.00020462,2]
[379640575,1755354634118,-151.0,0.00020462,2]
[379640576,1755354634129,-151.0,0.00020462,2]
[379640577,1755354634140,-500.0,0.00020462,2]
[379640578,1755354634150,-500.0,0.00020462,2]
[379640579,1755354634160,-500.0,0.00020462,2]
[379640580,1755354634170,-500.0,0.00020462,2]
[379640581,1755354634180,-186.6339839,0.00020462,2]
[379640582,1755354634190,-151.0,0.00020462,2]
[379640583,1755354634200,-500.0,0.00020462,2]
[379640584,1755354634210,-500.0,0.00020462,2]
[379640585,1755354634220,-500.0,0.00020462,2]
[379640586,1755354634230,-179.97361174,0.00020736,2]
[379640587,1755354634240,-151.0,0.00020736,2]
[379640588,1755354634250,-151.0,0.00020736,2]
[379640589,1755354634259,-302.0,0.00020736,2]
[379640590,1755354634269,-302.0,0.00020736,2]
[379640591,1755354634279,-151.0,0.00020736,2]
[379640592,1755354634292,-500.0,0.00020736,2]
[379640593,1755354634303,-226.49285433,0.00020736,2]
[379640594,1755354634314,-266.51096537,0.00020736,2]
[379640595,1755354634326,-151.44742582,0.00020736,2]
[379640596,1755354634336,-500.0,0.00020736,2]
[379640597,1755354634345,-500.0,0.00020736,2]
[379640598,1755354634356,-500.0,0.00020736,2]
[379640599,1755354634366,-500.0,0.00020736,2]
[379640600,1755354634376,-400.34083838,0.00020736,2]
[379640601,1755354634386,-500.0,0.00020736,2]
[379640602,1755354634395,-302.0,0.00020736,2]
[379640603,1755354634405,-1000.0,0.00020748,2]
[379640604,1755354634415,-591.82785039,0.00020748,2]
[379640605,1755354634424,-521.95,0.00020852,2]
[379640606,1755354634434,-152.87880415,0.00020878,2]
[379640607,1755354634444,-14702.98813395,0.00020878,2]
[379640608,1755354634456,-500.0,0.00020908,2]
[379640609,1755354634466,-1000.0,0.00020908,2]
[379640610,1755354634475,-1000.0,0.00020908,2]
[379640611,1755354634485,-419.2295414,0.00020908,2]
[379640624,1755354638528,-580.7704586,0.00020908,2]
[379640625,1755354638538,-1000.0,0.00020908,2]
[379640626,1755354638547,-500.0,0.00020908,2]
[379640627,1755354638556,-1222.3896132,0.0002091,2]
[379640628,1755354638567,-546.62099298,0.0002091,2]
[379640629,1755354638577,-151.0,0.00020916,2]
[379640630,1755354638586,-151.0,0.00020916,2]
[379640631,1755354638595,-151.0,0.00020916,2]
[379640632,1755354638603,-203.47913309,0.00020916,2]
[379640633,1755354638612,-151.0,0.00020916,2]
[379640634,1755354638621,-151.0,0.00020916,2]
[379640635,1755354638630,-151.0,0.00020916,2]
[379640636,1755354638640,-278.09689054,0.00020916,2]
[379640637,1755354638650,-151.0,0.00020916,2]
[379640639,1755354638660,-151.0,0.00020916,2]
[379640641,1755354638669,-151.0,0.00020916,2]
[379640643,1755354638678,-78.60365772,0.00020916,2]
[379640646,1755354638693,-1112.55445165,0.00020916,2]
[379640648,1755354638703,-31620.38333528,0.0002099,2]
[379640650,1755354638714,-62195.71261613,0.0002099,2]
[379640655,1755354638748,-6183.90404859,0.0002099,2]
[379640657,1755354638758,-151.0,0.0002101,2]
[379640659,1755354638766,-151.0,0.0002101,2]
[379640661,1755354638776,-151.0,0.0002101,2]
[379640663,1755354638785,-500.0,0.0002101,2]
[379640665,1755354638795,-500.0,0.0002101,2]
[379640667,1755354638804,-151.0,0.0002101,2]
[379640669,1755354638813,-500.0,0.0002101,2]
[379640671,1755354638822,-151.0,0.0002101,2]
[379640673,1755354638832,-500.0,0.0002101,2]
[379640675,1755354638841,-168.0,0.00021016,2]
[379640677,1755354638850,-900.0,0.00021095,2]
[379640679,1755354638859,-168.0,0.00021162,2]
[379640681,1755354638869,-1972.40244246,0.00021175,2]
[379640683,1755354638878,-151.35984124,0.0002119,2]
[379640685,1755354638888,-151.0,0.0002119,2]
[379640687,1755354638897,-151.0,0.0002119,2]
[379640689,1755354638906,-198.0,0.0002119,2]
[379640691,1755354638916,-151.0,0.0002119,2]
[379640693,1755354638926,-151.0,0.0002119,2]
[379640695,1755354638935,-151.0,0.0002119,2]
[379640697,1755354638944,-159.5875323,0.0002119,2]
[379640699,1755354638954,-549.8,0.00021232,3]
[379640701,1755354638963,-1769.01060616,0.00021274,2]
[379640703,1755354638972,-291.36802634,0.00021284,2]
[379640705,1755354638982,-151.0,0.00021284,2]
[379640707,1755354638992,-151.0,0.00021284,2]
[379640709,1755354639002,-200.21392917,0.00021284,2]
[379640711,1755354639012,-500.0,0.00021284,2]
[379640713,1755354639021,-204.02360419,0.00021284,2]
[379640715,1755354639031,-500.0,0.00021284,2]
[379640717,1755354639041,-1502.72201185,0.00021296,2]
[379640719,1755354639050,-151.0,0.000213,3]
[379640721,1755354639059,-168.0,0.00021377,2]
[379640723,1755354639069,-1191.15810937,0.00021424,2]
[379640725,1755354639078,-528.38334358,0.00021427,2]
[379640727,1755354639087,-160.0,0.00021427,2]
[379640729,1755354639096,-160.0,0.00021427,2]
[379640731,1755354639105,-232.11368524,0.00021427,2]
[379640733,1755354639115,-160.0,0.00021427,2]
[379640735,1755354639124,-160.0,0.00021427,2]
[379640737,1755354639134,-462.1417622,0.00021427,2]
[379640739,1755354639143,-215.68093138,0.00021437,2]
[379640741,1755354639152,-223.69,0.00021454,30]
[379640743,1755354639161,-1500.0,0.00021456,2]
[379640745,1755354639170,-1500.0,0.00021456,2]
[379640747,1755354639179,-252.89412114,0.00021456,2]
[379640749,1755354639188,-151.0,0.00021464,2]
[379640751,1755354639198,-204.13346045,0.00021464,2]
[379640753,1755354639207,-151.0,0.00021464,2]
[379640755,1755354639216,-549.8,0.00021543,3]
[379640757,1755354639225,-198.0,0.00021558,2]
[379640759,1755354639235,-198.0,0.00021558,2]
[379640761,1755354639244,-500.0,0.00021558,2]
[379640763,1755354639253,-244.02015005,0.00021558,2]
[379640765,1755354639262,-151.0,0.000216,3]
[379640767,1755354639272,-1769.01060616,0.00021638,2]
[379640769,1755354639281,-168.0,0.00021671,2]
[379640771,1755354639295,-151.0,0.000217,4]
[379640773,1755354639304,-151.74436775,0.00021738,2]
[379640775,1755354639313,-254.07947778,0.00021738,2]
[379640777,1755354639323,-151.0,0.000218,3]
[379640779,1755354639334,-500.0,0.00021832,2]
[379640781,1755354639343,-549.8,0.00021855,3]
[379640783,1755354639352,-265.94935015,0.0002188,8]
[379640785,1755354639361,-480.0,0.00021917,3]
[379640787,1755354639371,-460.0,0.00021917,3]
[379640789,1755354639382,-526.5,0.00021917,3]
[379640791,1755354639391,-480.0,0.00021917,3]
[379640793,1755354639401,-480.0,0.00021917,3]
[379640795,1755354639410,-518.83065946,0.00021917,2]
[379640797,1755354639419,-605.16,0.00021917,3]
[379640799,1755354639428,-480.0,0.00021917,3]
[379640801,1755354639437,-480.0,0.00021917,3]
[379640803,1755354639446,-480.0,0.00021917,3]
[379640805,1755354639455,-480.0,0.00021917,3]
[379640807,1755354639465,-460.0,0.00021917,3]
[379640809,1755354639474,-480.0,0.00021917,3]
[379640811,1755354639484,-480.0,0.00021917,3]
[379640813,1755354639493,-480.0,0.00021917,3]
[379640815,1755354639502,-480.0,0.00021917,3]
[379640817,1755354639512,-480.0,0.00021917,3]
[379640818,1755354639522,-480.0,0.00021917,3]
[379640820,1755354639531,-440.0,0.00021917,3]
[379640822,1755354639540,-480.0,0.00021917,3]
[379640824,1755354639549,-480.0,0.00021917,3]
[379640826,1755354639558,-460.0,0.00021917,3]
[379640828,1755354639567,-480.0,0.00021917,3]
[379640830,1755354639577,-480.0,0.00021917,3]
[379640832,1755354639586,-480.0,0.00021917,3]
[379640834,1755354639595,-280.0,0.00021917,3]
[379640836,1755354639605,-480.0,0.00021917,3]
[379640838,1755354639614,-480.0,0.00021917,3]
[379640840,1755354639624,-480.0,0.00021917,3]
[379640842,1755354639633,-480.0,0.00021917,3]
[379640844,1755354639642,-480.0,0.00021917,3]
[379640846,1755354639652,-480.0,0.00021917,3]
[379640848,1755354639661,-480.0,0.00021917,3]
[379640850,1755354639670,-436.15157528,0.00021917,3]
[379640852,1755354639680,-440.0,0.00021917,3]
[379640854,1755354639689,-480.0,0.00021917,3]
[379640856,1755354639699,-480.0,0.00021917,3]
[379640858,1755354639709,-460.0,0.00021917,3]
[379640860,1755354639719,-480.0,0.00021917,3]
[379640862,1755354639728,-448.17852833,0.00021917,3]
[379640864,1755354639738,-489.51,0.00021917,3]
[379640866,1755354639747,-460.0,0.00021917,3]
[379640868,1755354639756,-480.0,0.00021917,3]
[379640870,1755354639766,-480.0,0.00021917,3]
[379640872,1755354639775,-480.0,0.00021917,3]
[379640874,1755354639785,-480.0,0.00021917,3]
[379640876,1755354639795,-480.0,0.00021917,3]
[379640878,1755354639804,-460.0,0.00021917,3]
[379640880,1755354639813,-443.17241273,0.00021917,3]
[379640882,1755354639823,-400.0,0.00021917,3]
[379640884,1755354639832,-480.0,0.00021917,3]
[379640886,1755354639842,-480.0,0.00021917,3]
[379640888,1755354639852,-480.0,0.00021917,3]
[379640890,1755354639861,-480.0,0.00021917,3]
[379640892,1755354639872,-480.0,0.00021917,3]
[379640894,1755354639881,-460.0,0.00021917,3]
[379640896,1755354639890,-440.0,0.00021917,3]
[379640898,1755354639900,-384.21009258,0.00021917,3]
[379640900,1755354639910,-480.0,0.00021917,3]
[379640902,1755354639919,-555.99,0.00021917,3]
[379640903,1755354639928,-480.0,0.00021917,3]
[379640905,1755354639937,-496.27,0.00021917,3]
[379640907,1755354639946,-862.54,0.00021917,3]
[379640909,1755354639955,-480.0,0.00021917,3]
[379640912,1755354639964,-480.0,0.00021917,3]
[379640914,1755354639974,-460.0,0.00021917,3]
[379640916,1755354639983,-460.0,0.00021917,3]
[379640918,1755354639992,-480.0,0.00021917,3]
[379640920,1755354640001,-460.0,0.00021917,3]
[379640922,1755354640011,-710.03,0.00021917,3]
[379640924,1755354640020,-480.0,0.00021917,3]
[379640926,1755354640029,-480.0,0.00021917,3]
[379640928,1755354640039,-1029.27,0.00021917,3]
[379640930,1755354640048,-674.64,0.00021917,3]
[379640932,1755354640058,-500.0,0.00021917,3]
[379640934,1755354640067,-524.98052485,0.00021917,3]
[379640936,1755354640076,-480.0,0.00021917,3]
[379640938,1755354640086,-480.0,0.00021917,3]
[379640940,1755354640096,-480.0,0.00021917,3]
[379640942,1755354640105,-480.0,0.00021917,3]
[379640944,1755354640115,-465.49062905,0.00021917,3]
[379640947,1755354640127,-480.0,0.00021917,3]
[379640950,1755354640137,-460.0,0.00021917,3]
[379640952,1755354640146,-480.0,0.00021917,3]
[379640954,1755354640156,-633.67,0.00021917,3]
[379640956,1755354640166,-480.0,0.00021917,3]
[379640958,1755354640175,-480.0,0.00021917,3]
[379640960,1755354640184,-480.0,0.00021917,3]
[379640962,1755354640194,-460.0,0.00021917,3]
[379640965,1755354640209,-480.0,0.00021917,3]
[379640966,1755354640218,-460.0,0.00021917,3]
[379640968,1755354640228,-480.0,0.00021917,3]
[379640970,1755354640237,-480.0,0.00021917,3]
[379640972,1755354640247,-480.0,0.00021917,3]
[379640974,1755354640256,-478.1006777,0.00021917,3]
[379640976,1755354640266,-338.74984126,0.00021917,3]
[379640978,1755354640275,-480.0,0.00021917,3]
[379640980,1755354640285,-494.21,0.00021917,3]
[379640982,1755354640298,-480.0,0.00021917,3]
[379640984,1755354640308,-480.0,0.00021917,3]
[379640986,1755354640317,-420.0,0.00021917,3]
[379640988,1755354640326,-461.43229512,0.00021917,3]
[379640990,1755354640337,-480.0,0.00021917,3]
[379640992,1755354640346,-480.0,0.00021917,3]
[379640994,1755354640355,-420.0,0.00021917,3]
[379640996,1755354640364,-662.77,0.00021917,3]
[379640998,1755354640375,-480.0,0.00021917,3]
[379641024,1755354640614,-480.0,0.00021917,3]
[379641026,1755354640625,-480.0,0.00021917,3]
[379641028,1755354640635,-480.0,0.00021917,3]
[379641030,1755354640645,-702.8,0.00021917,3]
[379641032,1755354640655,-480.0,0.00021917,3]
[379641034,1755354640665,-480.0,0.00021917,3]
[379641036,1755354640676,-480.0,0.00021917,3]
[379641038,1755354640685,-446.76545114,0.00021917,3]
[379641040,1755354640696,-480.0,0.00021917,3]
[379641042,1755354640706,-480.0,0.00021917,3]
[379641044,1755354640716,-532.3722477,0.00021917,3]
[379641046,1755354640725,-2144.28,0.00021917,3]
[379641048,1755354640735,-460.0,0.00021917,3]
[379641050,1755354640744,-460.0,0.00021917,3]
[379641052,1755354640754,-480.0,0.00021917,3]
[379641054,1755354640763,-480.0,0.00021917,3]
[379641056,1755354640772,-480.0,0.00021917,3]
[379641058,1755354640782,-480.0,0.00021917,3]
[379641060,1755354640791,-480.0,0.00021917,3]
[379641062,1755354640801,-692.7,0.00021917,3]
[379641064,1755354640810,-405.3269916,0.00021917,3]
[379641066,1755354640819,-480.0,0.00021917,3]
[379641068,1755354640828,-460.0,0.00021917,3]
[379641070,1755354640838,-480.0,0.00021917,3]
[379641072,1755354640847,-480.0,0.00021917,3]
[379641074,1755354640857,-421.30257787,0.00021917,3]
[379641076,1755354640866,-440.93353992,0.00021917,3]
[379641078,1755354640876,-480.0,0.00021917,3]
[379641080,1755354640885,-420.0,0.00021917,3]
[379641082,1755354640894,-480.0,0.00021917,3]
[379641084,1755354640904,-460.0,0.00021917,3]
[379641086,1755354640913,-480.0,0.00021917,3]
[379641088,1755354640923,-608.52,0.00021917,3]
[379641090,1755354640933,-480.0,0.00021917,3]
[379641092,1755354640942,-407.18596913,0.00021917,3]
[379641094,1755354640951,-480.0,0.00021917,3]
[379641096,1755354640961,-480.0,0.00021917,3]
[379641098,1755354640970,-480.0,0.00021917,3]
[379641100,1755354640980,-480.0,0.00021917,3]
[379641102,1755354640989,-482.47,0.00021917,3]
[379641104,1755354640998,-480.0,0.00021917,3]
[379641106,1755354641007,-688.51,0.00021917,3]
[379641108,1755354641016,-632.37,0.00021917,3]
[379641110,1755354641026,-537.62,0.00021917,3]
[379641112,1755354641035,-480.0,0.00021917,3]
[379641114,1755354641044,-480.0,0.00021917,3]
[379641116,1755354641054,-484.98184861,0.00021917,3]
[379641118,1755354641063,-460.0,0.00021917,3]
[379641120,1755354641073,-212.28138,0.00021917,2]
[379641122,1755354641083,-803.93,0.00021917,3]
[379641124,1755354641092,-480.0,0.00021917,3]
[379641126,1755354641101,-480.0,0.00021917,3]
[379641128,1755354641112,-480.0,0.00021917,3]
[379641130,1755354641122,-480.0,0.00021917,3]
[379641132,1755354641131,-480.0,0.00021917,3]
[379641134,1755354641141,-1167.11,0.00021917,3]
[379641136,1755354641150,-480.0,0.00021917,3]
[379641138,1755354641160,-480.0,0.00021917,3]
[379641140,1755354641169,-480.0,0.00021917,3]
[379641142,1755354641178,-480.0,0.00021917,3]
[379641144,1755354641187,-460.0,0.00021917,3]
[379641146,1755354641196,-480.0,0.00021917,3]
[379641148,1755354641206,-480.0,0.00021917,3]
[379641150,1755354641215,-419.82905163,0.00021917,3]
[379641152,1755354641224,-480.0,0.00021917,3]
[379641154,1755354641233,-480.0,0.00021917,3]
[379641156,1755354641243,-480.0,0.00021917,3]
[379641158,1755354641253,-1748.71,0.00021917,3]
[379641160,1755354641262,-480.0,0.00021917,3]
[379641162,1755354641272,-480.0,0.00021917,3]
[379641164,1755354641282,-414.60058556,0.00021917,3]
[379641166,1755354641293,-480.0,0.00021917,3]
[379641168,1755354641303,-480.0,0.00021917,3]
[379641170,1755354641312,-480.0,0.00021917,3]
[379641172,1755354641322,-480.0,0.00021917,3]
[379641174,1755354641332,-460.0,0.00021917,3]
[379641176,1755354641342,-480.0,0.00021917,3]
[379641178,1755354641357,-480.06377375,0.00021917,3]
[379641180,1755354641376,-986.58,0.00021917,3]
[379641181,1755354641394,-460.0,0.00021917,3]
[379641183,1755354641404,-1658.19,0.00021917,3]
[379641185,1755354641414,-461.08976152,0.00021917,3]
[379641187,1755354641423,-480.0,0.00021917,3]
[379641189,1755354641433,-506.63873082,0.00021917,3]
[379641191,1755354641451,-480.0,0.00021917,3]
[379641195,1755354641486,-2568.21,0.00021917,3]
[379641197,1755354641496,-480.0,0.00021917,3]
[379641199,1755354641506,-480.0,0.00021917,3]
[379641201,1755354641516,-460.0,0.00021917,3]
[379641203,1755354641525,-480.0,0.00021917,3]
[379641205,1755354641534,-1272.08,0.00021917,3]
[379641207,1755354641544,-480.0,0.00021917,3]
[379641209,1755354641553,-480.0,0.00021917,3]
[379641211,1755354641562,-480.0,0.00021917,3]
[379641213,1755354641572,-480.0,0.00021917,3]
[379641215,1755354641581,-480.0,0.00021917,3]
[379641217,1755354641591,-480.0,0.00021917,3]
[379641219,1755354641600,-380.0,0.00021917,3]
[379641221,1755354641610,-480.0,0.00021917,3]
[379641223,1755354641619,-524.79674422,0.00021917,3]
[379641224,1755354641628,-460.0,0.00021917,3]
[379641226,1755354641638,-480.0,0.00021917,3]
[379641228,1755354641648,-480.0,0.00021917,3]
[379641230,1755354641657,-480.0,0.00021917,3]
[379641233,1755354641667,-480.0,0.00021917,3]
[379641234,1755354641676,-480.0,0.00021917,3]
[379641236,1755354641686,-10251.48,0.00021917,3]
[379641238,1755354641695,-599.9,0.00021917,3]
[379641240,1755354641704,-480.0,0.00021917,3]
[379641242,1755354641713,-480.0,0.00021917,3]
[379641244,1755354641723,-480.0,0.00021917,3]
[379641246,1755354641732,-480.0,0.00021917,3]
[379641248,1755354641742,-480.0,0.00021917,3]
[379641250,1755354641751,-480.0,0.00021917,3]
[379641252,1755354641760,-780.04,0.00021917,3]
[379641254,1755354641769,-480.0,0.00021917,3]
[379641256,1755354641778,-480.0,0.00021917,3]
[379641258,1755354641787,-480.0,0.00021917,3]
[379641260,1755354641796,-480.0,0.00021917,3]
[379641262,1755354641806,-460.0,0.00021917,3]
[379641264,1755354641815,-369.45589277,0.00021917,3]
[379641266,1755354641824,-480.0,0.00021917,3]
[379641268,1755354641833,-460.0,0.00021917,3]
[379641270,1755354641842,-480.0,0.00021917,3]
[379641272,1755354641851,-442.17522799,0.00021917,3]
[379641274,1755354641860,-480.0,0.00021917,3]
[379641276,1755354641869,-403.35921744,0.00021917,3]
[379641278,1755354641878,-461.72265976,0.00021917,3]
[379641280,1755354641887,-480.0,0.00021917,3]
[379641282,1755354641898,-480.0,0.00021917,3]
[379641284,1755354641907,-460.0,0.00021917,3]
[379641286,1755354641917,-480.0,0.00021917,3]
[379641288,1755354641927,-480.0,0.00021917,3]
[379641290,1755354641936,-480.0,0.00021917,3]
[379641292,1755354641945,-480.0,0.00021917,3]
[379641294,1755354641955,-480.0,0.00021917,3]
[379641296,1755354641963,-156.6506859,0.00021917,3]
[379641298,1755354641973,-480.0,0.00021917,3]
[379641300,1755354641981,-514.49,0.00021917,3]
[379641302,1755354641990,-613.83,0.00021917,3]
[379641304,1755354642000,-480.0,0.00021917,3]
[379641306,1755354642009,-460.0,0.00021917,3]
[379641308,1755354642018,-480.0,0.00021917,3]
[379641310,1755354642028,-480.0,0.00021917,3]
[379641312,1755354642037,-460.0,0.00021917,3]
[379641314,1755354642047,-545.52702893,0.00021917,3]
[379641316,1755354642056,-855.08,0.00021917,3]
[379641318,1755354642065,-480.0,0.00021917,3]
[379641320,1755354642073,-1167.32,0.00021917,3]
[379641322,1755354642083,-480.0,0.00021917,3]
[379641324,1755354642092,-480.0,0.00021917,3]
[379641326,1755354642102,-556.77,0.00021917,3]
[379641328,1755354642111,-215.68093138,0.00021917,3]
[379641330,1755354642123,-480.0,0.00021917,3]
[379641332,1755354642132,-480.0,0.00021917,3]
[379641334,1755354642141,-480.0,0.00021917,3]
[379641336,1755354642150,-460.0,0.00021917,3]
[379641338,1755354642161,-460.0,0.00021917,3]
[379641340,1755354642170,-480.0,0.00021917,3]
[379641342,1755354642180,-480.0,0.00021917,3]
[379641344,1755354642189,-480.0,0.00021917,3]
[379641346,1755354642198,-869.7,0.00021917,3]
[379641348,1755354642207,-480.0,0.00021917,3]
[379641350,1755354642217,-495.91,0.00021917,3]
[379641352,1755354642226,-879.67,0.00021917,3]
[379641354,1755354642235,-694.86,0.00021917,3]
[379641356,1755354642244,-1367.28,0.00021917,3]
[379641358,1755354642253,-480.0,0.00021917,3]
[379641360,1755354642263,-480.0,0.00021917,3]
[379641362,1755354642272,-2000.06,0.00021917,3]
[379641364,1755354642281,-480.0,0.00021917,3]
[379641366,1755354642292,-460.0,0.00021917,3]
[379641368,1755354642305,-705.6,0.00021917,3]
[379641370,1755354642315,-480.0,0.00021917,3]
[379641372,1755354642325,-260.05125079,0.00021917,3]
[379641374,1755354642334,-480.0,0.00021917,3]
[379641375,1755354642344,-480.0,0.00021917,3]
[379641377,1755354642353,-480.0,0.00021917,3]
[379641379,1755354642362,-480.0,0.00021917,3]
[379641381,1755354642375,-1971.17,0.00021917,3]
[379641383,1755354642385,-480.0,0.00021917,3]
[379641385,1755354642394,-480.27,0.00021917,3]
[379641387,1755354642403,-480.0,0.00021917,3]
[379641389,1755354642412,-480.0,0.00021917,3]
[379641391,1755354642421,-460.0,0.00021917,3]
[379641393,1755354642430,-1460.97,0.00021917,3]
[379641395,1755354642439,-468.27380012,0.00021917,3]
[379641397,1755354642448,-480.0,0.00021917,3]
[379641399,1755354642457,-480.0,0.00021917,3]
[379641401,1755354642467,-480.0,0.00021917,3]
[379641403,1755354642476,-1458.06,0.00021917,3]
[379641405,1755354642485,-1313.45,0.00021917,3]
[379641407,1755354642495,-480.0,0.00021917,3]
[379641409,1755354642504,-1028.35,0.00021917,3]
[379641411,1755354642513,-480.0,0.00021917,3]
[379641413,1755354642522,-480.0,0.00021917,3]
[379641415,1755354642532,-480.0,0.00021917,3]
[379641417,1755354642541,-480.0,0.00021917,3]
[379641419,1755354642550,-480.0,0.00021917,3]
[379641421,1755354642559,-480.0,0.00021917,3]
[379641423,1755354642568,-677.55,0.00021917,3]
[379641425,1755354642578,-8181.88,0.00021917,3]
[379641427,1755354642587,-1312.05,0.00021917,3]
[379641429,1755354642596,-1252.27,0.00021917,3]
[379641431,1755354642606,-480.0,0.00021917,3]
[379641433,1755354642615,-480.0,0.00021917,3]
[379641435,1755354642625,-480.0,0.00021917,3]
[379641437,1755354642635,-480.0,0.00021917,3]
[379641439,1755354642644,-1581.97,0.00021917,3]
[379641441,1755354642654,-560.08,0.00021917,3]
[379641443,1755354642663,-14033.48,0.00021917,3]
[379641445,1755354642673,-480.0,0.00021917,3]
[379641447,1755354642683,-667.56,0.00021917,2]
[379641449,1755354642692,-4010.09,0.00021917,3]
[379641451,1755354642701,-480.0,0.00021917,3]
[379641452,1755354642710,-2987.01,0.00021917,3]
[379641453,1755354642719,-480.0,0.00021917,3]
[379641454,1755354642727,-480.0,0.00021917,3]
[379641455,1755354642737,-480.0,0.00021917,3]
[379641456,1755354642746,-462.1417622,0.00021917,3]
[379641457,1755354642755,-1051.89,0.00021917,3]
[379641458,1755354642764,-480.0,0.00021917,3]
[379641459,1755354642773,-4922.6,0.00021917,3]
[379641460,1755354642782,-3809.75,0.00021917,3]
[379641461,1755354642791,-480.0,0.00021917,3]
[379641462,1755354642799,-480.0,0.00021917,3]
[379641463,1755354642808,-480.0,0.00021917,3]
[379641464,1755354642817,-1173.19,0.00021917,3]
[379641465,1755354642826,-1021.2,0.00021917,3]
[379641466,1755354642835,-425.42665456,0.00021917,3]
[379641467,1755354642844,-400.0,0.00021917,3]